fUST/lending_fUST_20240912
["ID","MTS","AMOUNT","RATE_DAILY","PERIOD"]
[337789577,1726120240339,-1013.82,0.00020821,2]
[337789578,1726120240348,-500.0,0.00020821,2]
[337789579,1726120240358,-1649.99,0.00020821,2]
[337789580,1726120240367,-1853.89,0.00020821,2]
[337789581,1726120240375,-500.0,0.00020821,2]
[337789582,1726120240385,-500.0,0.00020821,2]
[337789583,1726120240398,-565.73,0.00020821,2]
[337789584,1726120240413,-3823.52,0.00020821,2]
[337789585,1726120240423,-500.0,0.00020821,2]
[337789586,1726120240432,-22020.08,0.00020821,2]
[337789587,1726120240442,-5622.05,0.00020821,2]
[337789588,1726120240451,-1353.58,0.00020821,2]
[337789589,1726120240460,-587.35666016,0.00020821,2]
[337789590,1726120240469,-631.56,0.00020821,2]
[337789591,1726120240479,-1320.81,0.00020821,2]
[337789592,1726120240489,-151.0,0.00020821,2]
[337789593,1726120240499,-500.0,0.00020821,2]
[337789594,1726120240510,-601.57,0.00020821,2]
[337789595,1726120240521,-151.0,0.00020821,2]
[337789596,1726120240531,-1528.89,0.00020821,2]
[337789597,1726120240541,-500.0,0.00020821,2]
[337789598,1726120240553,-1162.83,0.00020821,2]
[337789599,1726120240564,-151.0,0.00020821,2]
[337789600,1726120240573,-1324.78,0.00020821,2]
[337789601,1726120240585,-829.33,0.00020821,2]
[337789602,1726120240596,-1065.01,0.00020821,2]
[337789603,1726120240607,-2800.83,0.00020821,2]
[337789604,1726120240619,-849.16,0.00020821,2]
[337789605,1726120240630,-988.02,0.00020821,2]
[337789606,1726120240644,-500.0,0.00020821,2]
[337789607,1726120240655,-500.0,0.00020821,2]
[337789608,1726120240665,-1494.21,0.00020821,2]
[337789609,1726120240675,-2658.09,0.00020821,2]
[337789610,1726120240686,-614.17,0.00020821,2]
[337789611,1726120240697,-251.0,0.00020822,2]
[337789612,1726120240707,-500.0,0.00020873,2]
[337789613,1726120240717,-500.0,0.00020873,2]
[337789614,1726120240728,-500.0,0.00020873,2]
[337789615,1726120240740,-500.0,0.00020984,2]
[337789616,1726120240751,-501.0621164,0.00020995,2]
[337789617,1726120240763,-5446.19,0.00021,2]
[337789618,1726120240773,-937.30445729,0.00021084,2]
[337789619,1726120240782,-850.52,0.00021095,2]
[337789620,1726120240792,-1032.85,0.00021095,2]
[337789621,1726120240802,-500.0,0.00021095,2]
[337789622,1726120240812,-619.85,0.00021095,2]
[337789623,1726120240824,-1062.15,0.00021095,2]
[337789624,1726120240834,-723.52,0.00021095,2]
[337789625,1726120240843,-1280.46,0.00021095,2]
[337789626,1726120240853,-802.21,0.00021095,2]
[337789627,1726120240862,-862.42,0.00021095,2]
[337789628,1726120240873,-1195.5,0.00021095,2]
[337789629,1726120240883,-829.19,0.00021095,2]
[337789630,1726120240894,-500.0,0.00021095,2]
[337789631,1726120240904,-1973.91,0.00021095,2]
[337789632,1726120240913,-537.61,0.00021095,2]
[337789633,1726120240923,-500.0,0.00021095,2]
[337789634,1726120240933,-540.55,0.00021095,2]
[337789635,1726120240942,-21987.48,0.00021095,2]
[337789636,1726120240952,-1141.94,0.00021095,2]
[337789637,1726120240962,-1329.92,0.00021095,2]
[337789638,1726120240972,-1485.95,0.00021095,2]
[337789639,1726120240982,-1012.07,0.00021095,2]
[337789640,1726120240992,-1938.17,0.00021095,2]
[337789641,1726120241001,-1238.32,0.00021095,2]
[337789642,1726120241011,-1410.29,0.00021095,2]
[337789643,1726120241021,-1018.33,0.00021095,2]
[337789644,1726120241031,-651.53,0.00021095,2]
[337789645,1726120241040,-1489.37,0.00021095,2]
[337789646,1726120241050,-718.69,0.00021095,2]
[337789647,1726120241059,-544.16,0.00021095,2]
[337789648,1726120241069,-555.97,0.00021095,2]
[337789649,1726120241079,-1466.67,0.00021095,2]
[337789650,1726120241088,-832.83,0.00021095,2]
[337789651,1726120241098,-631.5,0.00021095,2]
[337789652,1726120241109,-892.86,0.00021095,2]
[337789653,1726120241120,-500.0,0.00021095,2]
[337789654,1726120241131,-844.45,0.00021095,2]
[337789655,1726120241142,-500.0,0.00021095,2]
[337789656,1726120241154,-1458.03,0.00021095,2]
[337789657,1726120241164,-2154.29,0.00021095,2]
[337789658,1726120241175,-1013.82,0.00021095,2]
[337789659,1726120241184,-500.0,0.00021095,2]
[337789660,1726120241194,-1649.99,0.00021095,2]
[337789661,1726120241204,-1853.89,0.00021095,2]
[337789662,1726120241214,-500.0,0.00021095,2]
[337789663,1726120241224,-500.0,0.00021095,2]
[337789664,1726120241234,-565.73,0.00021095,2]
[337789665,1726120241244,-3823.52,0.00021095,2]
[337789666,1726120241254,-500.0,0.00021095,2]
[337789667,1726120241264,-22020.08,0.00021095,2]
[337789668,1726120241273,-5622.05,0.00021095,2]
[337789669,1726120241283,-1353.58,0.00021095,2]
[337789670,1726120241293,-631.56,0.00021095,2]
[337789671,1726120241303,-1320.81,0.00021095,2]
[337789672,1726120241316,-218.02453242,0.00021095,2]
[337789673,1726120241327,-601.57,0.00021095,2]
[337789674,1726120241336,-1528.89,0.00021095,2]
[337789675,1726120241345,-500.0,0.00021095,2]
[337789676,1726120241356,-1162.83,0.00021095,2]
[337789677,1726120241367,-1324.78,0.00021095,2]
[337789678,1726120241377,-829.33,0.00021095,2]
[337789679,1726120241387,-1065.01,0.00021095,2]
[337789680,1726120241398,-2800.83,0.00021095,2]
[337789681,1726120241408,-849.16,0.00021095,2]
[337789682,1726120241417,-988.02,0.00021095,2]
[337789683,1726120241427,-500.0,0.00021095,2]
[337789684,1726120241437,-500.0,0.00021095,2]
[337789685,1726120241447,-1494.21,0.00021095,2]
[337789686,1726120241457,-2658.09,0.00021095,2]
[337789687,1726120241468,-614.17,0.00021095,2]
[337789688,1726120241477,-1341.86401986,0.00021182,2]
[337789689,1726120241487,-850.52,0.00021369,2]
[337789690,1726120241497,-500.0,0.00021369,2]
[337789691,1726120241506,-619.85,0.00021369,2]
[337789692,1726120241516,-1032.85,0.00021369,2]
[337789693,1726120241526,-1062.15,0.00021369,2]
[337789694,1726120241535,-723.52,0.00021369,2]
[337789695,1726120241545,-1280.46,0.00021369,2]
[337789696,1726120241554,-802.21,0.00021369,2]
[337789697,1726120241564,-862.42,0.00021369,2]
[337789698,1726120241574,-829.19,0.00021369,2]
[337789699,1726120241584,-1195.5,0.00021369,2]
[337789700,1726120241594,-500.0,0.00021369,2]
[337789701,1726120241603,-1973.91,0.00021369,2]
[337789702,1726120241612,-537.61,0.00021369,2]
[337789703,1726120241621,-500.0,0.00021369,2]
[337789704,1726120241631,-540.55,0.00021369,2]
[337789705,1726120241640,-21987.48,0.00021369,2]
[337789706,1726120241650,-1141.94,0.00021369,2]
[337789707,1726120241659,-1329.92,0.00021369,2]
[337789708,1726120241669,-1485.95,0.00021369,2]
[337789709,1726120241679,-1012.07,0.00021369,2]
[337789710,1726120241689,-1938.17,0.00021369,2]
[337789711,1726120241698,-1238.32,0.00021369,2]
[337789712,1726120241708,-1410.29,0.00021369,2]
[337789713,1726120241718,-1018.33,0.00021369,2]
[337789714,1726120241727,-651.53,0.00021369,2]
[337789715,1726120241737,-1489.37,0.00021369,2]
[337789716,1726120241746,-718.69,0.00021369,2]
[337789717,1726120241756,-544.16,0.00021369,2]
[337789718,1726120241766,-555.97,0.00021369,2]
[337789719,1726120241775,-1466.67,0.00021369,2]
[337789720,1726120241784,-832.83,0.00021369,2]
[337789721,1726120241794,-631.5,0.00021369,2]
[337789722,1726120241804,-892.86,0.00021369,2]
[337789723,1726120241813,-500.0,0.00021369,2]
[337789724,1726120241823,-844.45,0.00021369,2]
[337789725,1726120241832,-500.0,0.00021369,2]
[337789726,1726120241842,-1458.03,0.00021369,2]
[337789727,1726120241851,-2154.29,0.00021369,2]
[337789728,1726120241860,-1013.82,0.00021369,2]
[337789729,1726120241870,-500.0,0.00021369,2]
[337789730,1726120241878,-1649.99,0.00021369,2]
[337789731,1726120241888,-1853.89,0.00021369,2]
[337789732,1726120241898,-313.9994179,0.00021369,2]
[337789733,1726120241908,-500.0,0.00021369,2]
[337789734,1726120241917,-565.73,0.00021369,2]
[337789735,1726120241926,-3823.52,0.00021369,2]
[337789737,1726120241935,-500.0,0.00021369,2]
[337789740,1726120241945,-9288.31578182,0.00021369,2]
[337789743,1726120241960,-12731.76421818,0.00021369,2]
[337789745,1726120241970,-5622.05,0.00021369,2]
[337789747,1726120241979,-1353.58,0.00021369,2]
[337789748,1726120241989,-631.56,0.00021369,2]
[337789749,1726120241998,-1320.81,0.00021369,2]
[337789750,1726120242009,-151.0,0.00021369,2]
[337789751,1726120242018,-601.57,0.00021369,2]
[337789752,1726120242028,-151.0,0.00021369,2]
[337789753,1726120242037,-1528.89,0.00021369,2]
[337789754,1726120242046,-500.0,0.00021369,2]
[337789755,1726120242055,-1162.83,0.00021369,2]
[337789756,1726120242066,-151.0,0.00021369,2]
[337789757,1726120242075,-1324.78,0.00021369,2]
[337789758,1726120242085,-829.33,0.00021369,2]
[337789759,1726120242094,-1065.01,0.00021369,2]
[337789760,1726120242104,-2800.83,0.00021369,2]
[337789761,1726120242114,-849.16,0.00021369,2]
[337789762,1726120242123,-988.02,0.00021369,2]
[337789763,1726120242133,-500.0,0.00021369,2]
[337789764,1726120242144,-500.0,0.00021369,2]
[337789765,1726120242156,-1494.21,0.00021369,2]
[337789766,1726120242165,-2658.09,0.00021369,2]
[337789767,1726120242174,-614.17,0.00021369,2]
[337789768,1726120242184,-501.0621164,0.00021495,2]
[337789769,1726120242193,-503.28378878,0.00021634,2]
[337789770,1726120242203,-850.52,0.00021643,2]
[337789771,1726120242212,-500.0,0.00021643,2]
[337789772,1726120242221,-619.85,0.00021643,2]
[337789773,1726120242231,-1032.85,0.00021643,2]
[337789774,1726120242241,-1062.15,0.00021643,2]
[337789775,1726120242251,-723.52,0.00021643,2]
[337789776,1726120242260,-1280.46,0.00021643,2]
[337789777,1726120242269,-802.21,0.00021643,2]
[337789778,1726120242280,-862.42,0.00021643,2]
[337789779,1726120242291,-829.19,0.00021643,2]
[337789780,1726120242302,-1195.5,0.00021643,2]
[337789781,1726120242318,-500.0,0.00021643,2]
[337789782,1726120242329,-1973.91,0.00021643,2]
[337789783,1726120242340,-537.61,0.00021643,2]
[337789784,1726120242352,-421.61242394,0.00021643,2]
[337789785,1726120242362,-540.55,0.00021643,2]
[337789786,1726120242372,-996.89755102,0.00021643,2]
[337789787,1726120242398,1178.69,0.00016986,2]
[337789788,1726120242427,500.0,0.00019178,2]
[337789789,1726120242452,1605.94,0.00019452,2]
[337789790,1726120242490,500.0,0.00016712,2]
[337789791,1726120242516,1178.69,0.0001726,2]
[337789792,1726120242543,500.0,0.00019452,2]
[337789793,1726120242570,1605.94,0.00019726,2]
[337789794,1726120242595,500.0,0.00016986,2]
[337789795,1726120242630,500.0,0.00016438,2]
[337789796,1726120242657,1178.69,0.00017534,2]
[337789797,1726120242685,500.0,0.00019726,2]
[337789798,1726120242714,169.88064648,0.0001726,2]
[337789799,1726120242740,1605.94,0.0002,2]
[337789800,1726120242766,500.0,0.00016712,2]
[337789801,1726120242793,1178.69,0.00017808,2]
[337789802,1726120242819,635.24487891,0.0002,2]
[337789803,1726120242849,500.0,0.00016986,2]
[337789804,1726120242875,1178.69,0.00018082,2]
[337789805,1726120242902,1178.69,0.00018356,2]
[337789806,1726120242932,500.0,0.0001726,2]
[337789807,1726120242970,500.0,0.00017534,2]
[337789808,1726120242996,1178.69,0.0001863,2]
[337789810,1726120243120,1178.69,0.00018904,2]
[337789812,1726120243146,500.0,0.00017808,2]
[337789813,1726120243184,1178.69,0.00019178,2]
[337789814,1726120243212,500.0,0.00018082,2]
[337789817,1726120243256,1178.69,0.00019452,2]
[337789819,1726120243284,500.0,0.00018356,2]
[337789820,1726120243324,500.0,0.0001863,2]
[337789821,1726120243350,1178.69,0.00019726,2]
[337789822,1726120243387,500.0,0.00018904,2]
[337789823,1726120243414,1178.69,0.0002,2]
[337789824,1726120243430,-1605.94,0.00020273,2]
[337789825,1726120243441,-1483.19,0.00020547,2]
[337789826,1726120243451,-1605.94,0.00020547,2]
[337789827,1726120243460,-1483.19,0.00020821,2]
[337789828,1726120243470,-1605.94,0.00020821,2]
[337789829,1726120243480,-1483.19,0.00021095,2]
[337789830,1726120243489,-1605.94,0.00021095,2]
[337789831,1726120243499,-433.14028447,0.00021369,2]
[337789832,1726120244069,500.0,0.00019178,2]
[337789833,1726120244086,-502.31584,0.00020273,2]
[337789834,1726120244098,-676.37416,0.00020273,2]
[337789835,1726120244107,-9.316766,0.00021369,2]
[337789836,1726120244120,-1040.73294953,0.00021369,2]
[337789837,1726120244133,-1605.94,0.00021369,2]
[337789838,1726120244143,-20990.58244898,0.00021643,2]
[337789839,1726120244154,-1141.94,0.00021643,2]
[337789840,1726120244163,-1329.92,0.00021643,2]
[337789841,1726120244173,-1485.95,0.00021643,2]
[337789842,1726120244183,-1012.07,0.00021643,2]
[337789843,1726120244192,-1938.17,0.00021643,2]
[337789844,1726120244203,-1238.32,0.00021643,2]
[337789845,1726120244212,-1410.29,0.00021643,2]
[337789846,1726120244223,-1018.33,0.00021643,2]
[337789847,1726120244233,-651.53,0.00021643,2]
[337789848,1726120244244,-1489.37,0.00021643,2]
[337789849,1726120244255,-718.69,0.00021643,2]
[337789850,1726120244264,-544.16,0.00021643,2]
[337789851,1726120244274,-555.97,0.00021643,2]
[337789852,1726120244284,-1466.67,0.00021643,2]
[337789853,1726120244293,-832.83,0.00021643,2]
[337789854,1726120244303,-631.5,0.00021643,2]
[337789855,1726120244316,-892.86,0.00021643,2]
[337789856,1726120244327,-500.0,0.00021643,2]
[337789857,1726120244338,-844.45,0.00021643,2]
[337789858,1726120244348,-500.0,0.00021643,2]
[337789859,1726120244358,-1458.03,0.00021643,2]
[337789860,1726120244369,-2154.29,0.00021643,2]
[337789861,1726120244380,-1013.82,0.00021643,2]
[337789862,1726120244391,-500.0,0.00021643,2]
[337789863,1726120244404,-1649.99,0.00021643,2]
[337789864,1726120244415,-1853.89,0.00021643,2]
[337789865,1726120244427,-500.0,0.00021643,2]
[337789866,1726120244440,-565.73,0.00021643,2]
[337789867,1726120244452,-3823.52,0.00021643,2]
[337789868,1726120244463,-500.0,0.00021643,2]
[337789869,1726120244473,-22020.08,0.00021643,2]
[337789870,1726120244483,-5622.05,0.00021643,2]
[337789871,1726120244494,-1353.58,0.00021643,2]
[337789872,1726120244504,-631.56,0.00021643,2]
[337789873,1726120244513,-1320.81,0.00021643,2]
[337789874,1726120244523,-601.57,0.00021643,2]
[337789875,1726120244534,-1528.89,0.00021643,2]
[337789876,1726120244544,-500.0,0.00021643,2]
[337789877,1726120244554,-1162.83,0.00021643,2]
[337789878,1726120244564,-1324.78,0.00021643,2]
[337789879,1726120244574,-829.33,0.00021643,2]
[337789880,1726120244585,-1065.01,0.00021643,2]
[337789881,1726120244595,-2800.83,0.00021643,2]
[337789882,1726120244608,-849.16,0.00021643,2]
[337789883,1726120244618,-988.02,0.00021643,2]
[337789884,1726120244628,-500.0,0.00021643,2]
[337789885,1726120244638,-583.72739801,0.00021643,2]
[337789886,1726120244648,-1494.21,0.00021643,2]
[337789887,1726120244658,-2658.09,0.00021643,2]
[337789888,1726120244669,-614.17,0.00021643,2]
[337789889,1726120244680,-1483.19,0.00021643,2]
[337789890,1726120244692,-1605.94,0.00021643,2]
[337789891,1726120244703,-500.0,0.00021697,2]
[337789892,1726120244713,-1057.96,0.00021697,2]
[337789893,1726120244723,-729.85786774,0.00021807,2]
[337789894,1726120244734,-813.12588426,0.00021807,2]
[337789895,1726120244744,-165.27938832,0.00021817,2]
[337789896,1726120244754,-175.0435178,0.00021873,2]
[337789897,1726120244765,-150.112233,0.000219,4]
[337789898,1726120244775,-500.0,0.00021906,2]
[337789899,1726120244784,-500.0,0.00021906,2]
[337789900,1726120244794,-500.0,0.00021906,2]
[337789901,1726120244804,-500.0,0.00021906,2]
[337789902,1726120244815,-151.0,0.00021907,2]
[337789903,1726120244825,-151.0,0.00021907,2]
[337789904,1726120244835,-151.0,0.00021907,2]
[337789905,1726120244847,-1000.0,0.00021908,2]
[337789906,1726120244858,-500.0,0.00021915,2]
[337789907,1726120244869,-1057.96,0.00021915,2]
[337789908,1726120244879,-500.0,0.00021915,2]
[337789909,1726120244889,-500.0,0.00021915,2]
[337789910,1726120244899,-1000.0,0.00021915,2]
[337789911,1726120244910,-5132.93921811,0.00021915,2]
[337789912,1726120244920,-150.66872861,0.00021916,2]
[337789913,1726120244930,-2912.32477727,0.00021916,2]
[337789914,1726120244941,-500.0,0.00021916,2]
[337789915,1726120244952,-500.0,0.00021916,2]
[337789916,1726120244962,-500.0,0.00021916,2]
[337789917,1726120244973,-500.0,0.00021916,2]
[337789918,1726120244984,-500.0,0.00021916,2]
[337789919,1726120244995,-500.0,0.00021916,2]
[337789920,1726120245007,-191.90436081,0.00021916,2]
[337789921,1726120245017,-500.0,0.00021916,2]
[337789922,1726120245027,-500.0,0.00021916,2]
[337789923,1726120245037,-500.0,0.00021916,2]
[337789924,1726120245048,-322.87420927,0.00021916,2]
[337789925,1726120245058,-1057.96,0.00021916,2]
[337789926,1726120245068,-1057.96,0.00021916,2]
[337789927,1726120245078,-1057.96,0.00021916,2]
[337789928,1726120245089,-1057.96,0.00021916,2]
[337789929,1726120245099,-1057.96,0.00021916,2]
[337789930,1726120245109,-1057.96,0.00021916,2]
[337789931,1726120245118,-1057.96,0.00021916,2]
[337789932,1726120245129,-1057.96,0.00021916,2]
[337789933,1726120245139,-500.0,0.00021916,2]
[337789934,1726120245150,-500.0,0.00021916,2]
[337789935,1726120245160,-500.0,0.00021916,2]
[337789936,1726120245170,-500.0,0.00021916,2]
[337789937,1726120245180,-500.0,0.00021916,2]
[337789938,1726120245190,-500.0,0.00021916,2]
[337789939,1726120245199,-500.0,0.00021916,2]
[337789940,1726120245210,-500.0,0.00021916,2]
[337789941,1726120245220,-500.0,0.00021916,2]
[337789942,1726120245230,-500.0,0.00021916,2]
[337789943,1726120245240,-500.0,0.00021916,2]
[337789944,1726120245249,-500.0,0.00021916,2]
[337789945,1726120245260,-160.0,0.00021916,2]
[337789946,1726120245269,-404.13349103,0.00021917,2]
[337789947,1726120245279,-501.24529178,0.00021917,2]
[337789948,1726120245289,-649.1,0.00021917,2]
[337789949,1726120245299,-500.0,0.00021917,2]
[337789950,1726120245309,-504.02127314,0.00021917,2]
[337789951,1726120245321,-500.0,0.00021917,2]
[337789952,1726120245331,-500.0,0.00021917,2]
[337789953,1726120245340,-500.0,0.00021917,2]
[337789954,1726120245351,-500.0,0.00021917,2]
[337789955,1726120245361,-500.0,0.00021917,2]
[337789956,1726120245371,-483.35798194,0.00021917,2]
[337789957,1726120245381,-500.0,0.00021917,2]
[337789958,1726120245393,-500.0,0.00021917,2]
[337789959,1726120245404,-500.0,0.00021917,2]
[337789960,1726120245415,-501.52088581,0.00021917,2]
[337789961,1726120245426,-500.0,0.00021917,2]
[337789962,1726120245437,-500.0,0.00021917,2]
[337789963,1726120245447,-210.64149446,0.00021917,2]
[337789964,1726120245458,-500.0,0.00021917,2]
[337789965,1726120245469,-500.0,0.00021917,2]
[337789966,1726120245661,-500.0,0.00021917,2]
[337789967,1726120245686,-500.0,0.00021917,2]
[337789968,1726120245695,-500.0,0.00021917,2]
[337789969,1726120245705,-500.0,0.00021917,2]
[337789970,1726120245714,-509.97526314,0.00021917,2]
[337789971,1726120245723,-483.26872439,0.00021917,2]
[337789972,1726120245734,-822.97,0.00021917,2]
[337789973,1726120245745,-500.87703025,0.00021917,2]
[337789974,1726120245754,-995.27,0.00021917,2]
[337789975,1726120245764,-503.98679247,0.00021917,2]
[337789976,1726120245774,-500.0,0.00021917,2]
[337789977,1726120245784,-501.61555016,0.00021917,2]
[337789978,1726120245794,-505.80811296,0.00021917,2]
[337789979,1726120245804,-170.53035797,0.00021917,2]
[337789980,1726120245813,-500.0,0.00021917,2]
[337789981,1726120245823,-500.0,0.00021917,2]
[337789982,1726120245833,-500.0,0.00021917,2]
[337789983,1726120245842,-513.67154487,0.00021917,2]
[337789984,1726120245852,-500.0,0.00021917,2]
[337789985,1726120245862,-655.03,0.00021917,2]
[337789986,1726120245872,-500.0,0.00021917,2]
[337789987,1726120245882,-504.24803342,0.00021917,2]
[337789988,1726120245892,-500.0,0.00021917,2]
[337789989,1726120245902,-501.56409171,0.00021917,2]
[337789990,1726120245911,-500.0,0.00021917,2]
[337789991,1726120245920,-500.0,0.00021917,2]
[337789992,1726120245930,-500.0,0.00021917,2]
[337789993,1726120245939,-500.0,0.00021917,2]
[337789994,1726120245949,-500.0,0.00021917,2]
[337789995,1726120245962,-500.0,0.00021917,2]
[337789996,1726120245972,-823.05,0.00021917,2]
[337789997,1726120245982,-500.0,0.00021917,2]
[337789998,1726120245992,-500.0,0.00021917,2]
[337789999,1726120246001,-500.0,0.00021917,2]
[337790000,1726120246011,-500.0,0.00021917,2]
[337790001,1726120246020,-200.0,0.00021917,2]
[337790002,1726120246030,-500.0,0.00021917,2]
[337790003,1726120246040,-1051.0,0.00021917,2]
[337790004,1726120246050,-500.0,0.00021917,2]
[337790005,1726120246060,-500.0,0.00021917,2]
[337790006,1726120246070,-500.0,0.00021917,2]
[337790007,1726120246079,-500.0,0.00021917,2]
[337790008,1726120246088,-500.0,0.00021917,2]
[337790009,1726120246097,-500.0,0.00021917,2]
[337790010,1726120246108,-500.0,0.00021917,2]
[337790011,1726120246119,-500.0,0.00021917,2]
[337790012,1726120246130,-500.0,0.00021917,2]
[337790013,1726120246141,-500.0,0.00021917,2]
[337790014,1726120246152,-500.0,0.00021917,2]
[337790015,1726120246162,-521.71,0.00021917,2]
[337790016,1726120246172,-500.0,0.00021917,2]
[337790017,1726120246181,-226.62450063,0.00021917,2]
[337790018,1726120246190,-500.0,0.00021917,2]
[337790019,1726120246199,-500.82846974,0.00021917,2]
[337790020,1726120246208,-500.0,0.00021917,2]
[337790021,1726120246218,-500.0,0.00021917,2]
[337790022,1726120246227,-1423.16,0.00021917,2]
[337790023,1726120246236,-502.19304392,0.00021917,2]
[337790024,1726120246246,-500.0,0.00021917,2]
[337790025,1726120246255,-505.67625459,0.00021917,2]
[337790026,1726120246265,-500.0,0.00021917,2]
[337790027,1726120246275,-1442.63,0.00021917,2]
[337790028,1726120246284,-2244.91,0.00021917,2]
[337790029,1726120246295,-500.0,0.00021917,2]
[337790030,1726120246306,-504.10185442,0.00021917,2]
[337790031,1726120246316,-500.0,0.00021917,2]
[337790032,1726120246328,-501.72141836,0.00021917,2]
[337790033,1726120246342,-500.0,0.00021917,2]
[337790034,1726120246354,-500.0,0.00021917,2]
[337790035,1726120246365,-1043.33,0.00021917,2]
[337790036,1726120246374,-500.0,0.00021917,2]
[337790038,1726120246384,-1281.0,0.00021917,2]
[337790039,1726120246393,-500.0,0.00021917,2]
[337790040,1726120246405,-500.0,0.00021917,2]
[337790041,1726120246417,-505.72544276,0.00021917,2]
[337790042,1726120246428,-500.0,0.00021917,2]
[337790043,1726120246437,-500.0,0.00021917,2]
[337790044,1726120246447,-500.0,0.00021917,2]
[337790045,1726120246456,-500.0,0.00021917,2]
[337790046,1726120246466,-500.0,0.00021917,2]
[337790047,1726120246477,-500.0,0.00021917,2]
[337790048,1726120246489,-500.0,0.00021917,2]
[337790049,1726120246500,-458.16474378,0.00021917,2]
[337790050,1726120246510,-508.00435842,0.00021917,2]
[337790051,1726120246519,-434.01232213,0.00021917,2]
[337790052,1726120246531,-500.0,0.00021917,2]
[337790053,1726120246542,-511.21189202,0.00021917,2]
[337790054,1726120246552,-500.0,0.00021917,2]
[337790055,1726120246562,-500.0,0.00021917,2]
[337790056,1726120246571,-502.79949883,0.00021917,2]
[337790057,1726120246580,-500.0,0.00021917,2]
[337790058,1726120246592,-394.728528,0.00021917,2]
[337790059,1726120246603,-500.0,0.00021917,2]
[337790060,1726120246613,-500.0,0.00021917,2]
[337790061,1726120246624,-500.0,0.00021917,2]
[337790062,1726120246634,-500.0,0.00021917,2]
[337790063,1726120246645,-500.0,0.00021917,2]
[337790064,1726120246655,-835.26,0.00021917,2]
[337790065,1726120246664,-516.44227839,0.00021917,2]
[337790066,1726120246674,-594.98,0.00021917,2]
[337790067,1726120246684,-501.34411749,0.00021917,2]
[337790068,1726120246695,-774.94,0.00021917,2]
[337790069,1726120246705,-500.0,0.00021917,2]
[337790070,1726120246715,-500.0,0.00021917,2]
[337790071,1726120246725,-500.0,0.00021917,2]
[337790072,1726120246735,-1208.12,0.00021917,2]
[337790073,1726120246745,-500.0,0.00021917,2]
[337790074,1726120246755,-500.0,0.00021917,2]
[337790075,1726120246765,-500.0,0.00021917,2]
[337790076,1726120246775,-556.93,0.00021917,2]
[337790077,1726120246784,-532.86,0.00021917,2]
[337790078,1726120246794,-277.39322571,0.00021917,2]
[337790079,1726120246804,-682.58,0.00021917,2]
[337790080,1726120246813,-500.0,0.00021917,2]
[337790081,1726120246823,-500.0,0.00021917,2]
[337790082,1726120246834,-362.44649439,0.00021917,2]
[337790083,1726120246843,-536.14825483,0.00021917,2]
[337790084,1726120246854,-870.69,0.00021917,2]
[337790085,1726120246864,-500.0,0.00021917,2]
[337790086,1726120246874,-504.92241837,0.00021917,2]
[337790087,1726120246883,-1073.64,0.00021917,2]
[337790088,1726120246894,-500.0,0.00021917,2]
[337790089,1726120246904,-1005.36,0.00021917,2]